Workbook

Sheet 1. Info
AC1: =IF('3. Data_Input_Sheet'!M12=0, "", '3. Data_Input_Sheet'!M12) -> Supplementary Interrogatory Responses
P11: Version | Q11: 3
F16: Utility Name | G16: Westario Power Inc.
F18: Service Territory
F20: Assigned EB Number | G20: EB2012-0176 | AA20: Company Name
Z21: 1 | AA21: Algoma Power Inc.
F22: Name and Title | G22: Lisa Milne, President and CEO | Z22: 2 | AA22: Atikokan Hydro Inc.
Z23: 3 | AA23: Attawapiskat Power Corporation
F24: Phone Number | G24: 519-507-6666 x-216 | Z24: 4 | AA24: Bluewater Power Distribution Corp.
Z25: 5 | AA25: Brant County Power
F26: Email Address | G26: lisa.milne@westario.com | Z26: 6 | AA26: Brantford Power Inc.
Z27: 7 | AA27: Burlington Hydro Inc.
Z28: 8 | AA28: Cambridge and North Dumfries Hydro
Z29: 9 | AA29: Canadian Niagara Power Inc. – Eastern Ontario Power/Fort Erie/Port Colborne
Z30: 10 | AA30: Centre Wellington Hydro Ltd.
Z31: 11 | AA31: Chapleau Public Utilities Corporation
Z32: 12 | AA32: COLLUS Power Corp.
Z33: 13 | AA33: Cooperative Hydro Embrun Inc.
Z34: 14 | AA34: E.L.K. Energy Inc.
Z35: 15 | AA35: Enersource Hydro Mississauga Inc.
Z36: 16 | AA36: Entegrus Powerlines Inc.
Z37: 17 | AA37: ENWIN Utilities Ltd.
Z38: 18 | AA38: Erie Thames Powerlines Corp.
Z39: 19 | AA39: Espanola Regional Hydro Distribution Corporation
Z40: 20 | AA40: Essex Powerlines Corporation
Z41: 21 | AA41: Festival Hydro Inc.
Z42: 22 | AA42: Fort Albany Power Corporation
Z43: 23 | AA43: Fort Frances Power Corporation
Z44: 24 | AA44: Greater Sudbury Hydro Inc.
Z45: 25 | AA45: Grimsby Power Inc.
Z46: 26 | AA46: Guelph Hydro Electric Systems Inc.
Z47: 27 | AA47: Haldimand County Hydro Inc.
Z48: 28 | AA48: Halton Hills Hydro Inc.
Z49: 29 | AA49: Hearst Power Distribution Co. Ltd.
Z50: 30 | AA50: Horizon Utilities Corporation
Z51: 31 | AA51: Hydro 2000 Inc.
Z52: 32 | AA52: Hydro Hawkesbury Inc.
Z53: 33 | AA53: Hydro One Brampton Networks Inc.
Z54: 34 | AA54: Hydro One Networks Inc.
Z55: 35 | AA55: Hydro One Remote Communities Inc.
Z56: 36 | AA56: Hydro Ottawa Limited
Z57: 37 | AA57: Innisfil Hydro Dist. Systems Limited
Z58: 38 | AA58: Kashechewan Power Corporation
Z59: 39 | AA59: Kenora Hydro Electric Corporation Ltd.
Z60: 40 | AA60: Kingston Hydro Corporation
Z61: 41 | AA61: Kitchener-Wilmot Hydro Inc.
Z62: 42 | AA62: Lakefront Utilities Inc.
Z63: 43 | AA63: Lakeland Power Distribution Ltd.
Z64: 44 | AA64: London Hydro Inc.
Z65: 45 | AA65: Midland Power Utility Corporation
Z66: 46 | AA66: Milton Hydro Distribution Inc.
Z67: 47 | AA67: Newmarket – Tay Power Distribution Ltd.
Z68: 48 | AA68: Niagara Peninsula Energy Inc.
Z69: 49 | AA69: Niagara-on-the-Lake Hydro Inc.
Z70: 50 | AA70: Norfolk Power Distribution Ltd.
Z71: 51 | AA71: North Bay Hydro Distribution Limited
Z72: 52 | AA72: Northern Ontario Wires Inc.
Z73: 53 | AA73: Oakville Hydro Distribution Inc.
Z74: 54 | AA74: Orangeville Hydro Limited
Z75: 55 | AA75: Orillia Power Distribution Corp.
Z76: 56 | AA76: Oshawa PUC Networks Inc.
Z77: 57 | AA77: Ottawa River Power Corporation
Z78: 58 | AA78: Parry Sound Power Corporation
Z79: 59 | AA79: Peterborough Distribution Inc.
Z80: 60 | AA80: PowerStream Inc. - Barrie
Z81: 61 | AA81: PowerStream Inc. - South
Z82: 62 | AA82: PUC Distribution Inc.
Z83: 63 | AA83: Renfrew Hydro Inc.
Z84: 64 | AA84: Rideau St. Lawrence Distribution Inc.
Z85: 65 | AA85: St. Thomas Energy Inc.
Z86: 66 | AA86: Sioux Lookout Hydro Inc.
Z87: 67 | AA87: Thunder Bay Hydro Electricity Distribution Inc.
Z88: 68 | AA88: Tillsonburg Hydro Inc.
Z89: 69 | AA89: Toronto Hydro-Electric System Limited
Z90: 70 | AA90: Veridian Connections Inc.
Z91: 71 | AA91: Wasaga Distribution Inc.
Z92: 72 | AA92: Waterloo North Hydro Inc.
Z93: 73 | AA93: Welland Hydro-Electric System Corp.
Z94: 74 | AA94: Wellington North Power Inc.
Z95: 75 | AA95: West Coast Huron Energy Inc.
Z96: 76 | AA96: Westario Power Inc.
Z97: 77 | AA97: Whitby Hydro Electric Corporation
Z98: 78 | AA98: Woodstock Hydro Services Inc.

Sheet 2. Table of Contents
D11: 1. Info | I11: 6. Taxes_PILs
D13: 2. Table of Contents | I13: 7. Cost_of_Capital
D15: 3. Data_Input_Sheet | I15: 8. Rev_Def_Suff
D17: 4. Rate_Base | I17: 9. Rev_Reqt
D19: 5. Utility Income
A24: Notes:
A25: (1) | B25: Pale green cells represent inputs
A26: (2) | B26: Pale green boxes at the bottom of each page are for additional notes
A27: (3) | B27: Pale yellow cells represent drop-down lists
A28: (4) | B28: Please note that this model uses MACROS. Before starting, please ensure that macros have been enabled.
A29: (5) | B29: Completed versions of the Revenue Requirement Work Form are required to be filed in working Microsoft Excel format.

Sheet 3. Data_Input_Sheet
U1: =CONCATENATE('2. Table of Contents'!$F$6," ",'2. Table of Contents'!$G$6) -> 
B9: Data Input (1)
E12: Initial Application | G12: (2) | I12: =IF(ISBLANK(M12),"","Adjustments") -> Adjustments | M12: Supplementary Interrogatory Responses | O12: (6) | Q12: =IF(ISBLANK(M12),"","Adjustments") -> Adjustments | U12: Per Board Decision
B15: 1 | C15: Rate Base
C16: Gross Fixed Assets (average) | E16: =+(50057765+58218384)/2 -> 54138074.5 | I16: -685259 | M16: =IF(ISBLANK(E16),0,E16+I16) -> 53452815.5 | Q16: =+((52717692+57406732)/2)-M16 -> 1609396.5 | U16: =IF(ISBLANK(E16),"",E16+I16+Q16) -> 55062212
C17: Accumulated Depreciation (average) | E17: =+(-18065895-20308840)/2 -> -19187367.5 | G17: (5) | I17: 23129 | M17: =IF(ISBLANK(E17),0,E17+I17) -> -19164238.5 | Q17: =+((-18757895-20186224)/2)-M17 -> -307821 | U17: =IF(ISBLANK(E17),"",E17+I17+Q17) -> -19472059.5
C18: Allowance for Working Capital:
C19: Controllable Expenses | E19: 6325500 | I19: 14200 | M19: =IF(ISBLANK(E19),0,E19+I19) -> 6339700 | Q19: -150000 | U19: =IF(ISBLANK(E19),"",E19+I19+Q19) -> 6189700
C20: Cost of Power | E20: 45548250 | I20: =45037744-45548250 -> -510506 | M20: =IF(ISBLANK(E20),0,E20+I20) -> 45037744 | Q20: =46149157-M20 -> 1111413 | U20: =IF(ISBLANK(E20),"",E20+I20+Q20) -> 46149157
C21: Working Capital Rate (%) | E21: 0.13 | G21: (9) | M21: =IF(ISBLANK(E21),0,E21) -> 0.13 | O21: (9) | U21: 0.12 | W21: (9)
B23: 2 | C23: Utility Income
C24: Operating Revenues:
C25: Distribution Revenue at Current Rates | E25: 8939434 | I25: =IF(ISBLANK(M25),"",IF(ISBLANK(E25),"",M25-E25)) -> 0 | M25: 8939434 | Q25: =IF(ISBLANK(U25),"",IF(ISBLANK(M25),"",U25-M25)) -> 35774 | U25: 8975208
C26: Distribution Revenue at Proposed Rates | E26: 9926660 | I26: =IF(ISBLANK(M26),"",IF(ISBLANK(E26),"",M26-E26)) -> -235857 | M26: 9690803 | Q26: =IF(ISBLANK(U26),"",IF(ISBLANK(M26),"",U26-M26)) -> -59222 | U26: 9631581
C27: Other Revenue:
C28: Specific Service Charges | E28: =+E33-E29-E31 -> 436418 | I28: =IF(ISBLANK(M28),"",IF(ISBLANK(E28),"",M28-E28)) -> 0 | M28: 436418 | Q28: =IF(ISBLANK(U28),"",IF(ISBLANK(M28),"",U28-M28)) -> 0 | U28: =+M28 -> 436418
C29: Late Payment Charges | E29: 89685 | I29: =IF(ISBLANK(M29),"",IF(ISBLANK(E29),"",M29-E29)) -> 0 | M29: 89685 | Q29: =IF(ISBLANK(U29),"",IF(ISBLANK(M29),"",U29-M29)) -> 0 | U29: =+M29 -> 89685
C30: Other Distribution Revenue | I30: =IF(ISBLANK(M30),"",IF(ISBLANK(E30),"",M30-E30)) ->  | Q30: =IF(ISBLANK(U30),"",IF(ISBLANK(M30),"",U30-M30)) ->  | U30: 0
C31: Other Income and Deductions | E31: 126938 | I31: =IF(ISBLANK(M31),"",IF(ISBLANK(E31),"",M31-E31)) -> 0 | M31: 126938 | Q31: =IF(ISBLANK(U31),"",IF(ISBLANK(M31),"",U31-M31)) -> 0 | U31: 126938
D33: Total Revenue Offsets | E33: 653041 | G33: (7) | I33: =IF(ISBLANK(M33),"",IF(ISBLANK(E33),"",M33-E33)) -> 0 | M33: 653041 | Q33: =IF(ISBLANK(U33),"",IF(ISBLANK(M33),"",U33-M33)) -> 0 | U33: 653041
C35: Operating Expenses:
C36: OM+A Expenses | E36: 6292500 | I36: 14200 | M36: =IF(ISBLANK(E36),"",E36+I36) -> 6306700 | Q36: -150000 | U36: =IF(ISBLANK(E36),"",E36+I36+Q36) -> 6156700
C37: Depreciation/Amortization | E37: =1495814-116677 -> 1379137 | G37: (10) | I37: -43677 | M37: =IF(ISBLANK(E37),"",E37+I37) -> 1335460 | Q37: =1343824-M37 -> 8364 | U37: =IF(ISBLANK(E37),"",E37+I37+Q37) -> 1343824
C38: Property taxes | E38: 33000 | M38: =IF(ISBLANK(E38),"",E38+I38) -> 33000 | U38: =IF(ISBLANK(E38),"",E38+I38+Q38) -> 33000
C39: Capital taxes | E39: =IF(ISBLANK(E48),"",E48) ->  | M39: =IF(ISBLANK(M48),"",M48) ->  | U39: =IF(ISBLANK(U48),"",U48) -> 
C40: Other expenses | M40: =IF(ISBLANK(E40),"",E40+I40) ->  | U40: =IF(ISBLANK(E40),"",E40+I40+Q40) -> 
B42: 3 | C42: Taxes/PILs
C43: Taxable Income:
D44: Adjustments required to arrive at taxable income | E44: =1830121-3377289 -> -1547168 | G44: (3) | M44: =1814269-3298926 -> -1484657 | U44: =1822635-3297047 -> -1474412
C45: Utility Income Taxes and Rates:
C46: Income taxes (not grossed up) | U46: 4586
C47: Income taxes (grossed up) | E47: =IF(ISBLANK(E46),"",E46/(1-SUM(E49:E50))) ->  | M47: =IF(ISBLANK(M46),"",M46/(1-SUM(M49:M50))) ->  | U47: =IF(ISBLANK(U46),"",U46/(1-SUM(U49:U50))) -> 5427.218935
C48: Capital Taxes
C49: Federal tax (%) | E49: 0.15 | M49: 0.15 | U49: 0.11
C50: Provincial tax (%) | E50: 0.115 | M50: 0.115 | U50: 0.045
C51: Income Tax Credits
B53: 4 | C53: Capitalization/Cost of Capital
C54: Capital Structure:
C55: Long-term debt Capitalization Ratio (%) | E55: 0.56 | M55: 0.56 | U55: 0.56
C56: Short-term debt Capitalization Ratio (%) | E56: 0.04 | G56: (8) | M56: 0.04 | O56: (8) | U56: 0.04 | W56: (8)
C57: Common Equity Capitalization Ratio (%) | E57: 0.4 | M57: 0.4 | U57: 0.4
C58: Prefered Shares Capitalization Ratio (%)
E59: =SUM(E55:E58) -> 1 | M59: =SUM(M55:M58) -> 1 | U59: =SUM(U55:U58) -> 1
E60: =IF(ISBLANK(E57),"",IF(SUM(E55:E58)=100%,"","Capital Structure must total 100%")) ->  | M60: =IF(ISBLANK(M57),"",IF(SUM(M55:M58)=100%,"","Capital Structure must total 100%")) ->  | U60: =IF(ISBLANK(U57),"",IF(SUM(U55:U58)=100%,"","Capital Structure must total 100%")) -> 
C61: Cost of Capital
C62: Long-term debt Cost Rate (%) | E62: 0.0579 | M62: 0.0526 | U62: 0.053
C63: Short-term debt Cost Rate (%) | E63: 0.0208 | M63: 0.0208 | U63: 0.0207
C64: Common Equity Cost Rate (%) | E64: 0.0912 | M64: 0.0893 | U64: 0.0898
C65: Prefered Shares Cost Rate (%)
D67: Adjustment to Return on Rate Base associated with Deferred PP&E balance as a result of transition from CGAAP to MIFRS ($) | E67: -32530 | G67: (11) | I67: =IF(ISBLANK(M67),"",IF(ISBLANK(E67),"",M67-E67)) -> -2979 | M67: -35509 | O67: (11) | Q67: =IF(ISBLANK(U67),"",IF(ISBLANK(M67),"",U67-M67)) -> -215 | U67: -35724 | W67: (11)
A69: Notes:
B70: General | C70: Data inputs are required on Sheets 3. Data from Sheet 3 will automatically complete calculations on sheets 4 through 9 (Rate Base through Revenue Requirement). Sheets 4 through 9 do not require any inputs except for notes that the Applicant may wish to enter to support the results. Pale green cells are available on sheets 4 through 9 to enter both footnotes beside key cells and the related text for the notes at the bottom of each sheet.
B71: (1) | C71: All inputs are in dollars ($) except where inputs are individually identified as percentages (%)
B72: (2) | C72: Data in column E is for Application as originally filed. For updated revenue requirement as a result of interrogatory responses, technical or settlement conferences, etc., use colimn M and Adjustments in column I
B73: (3) | C73: Net of addbacks and deductions to arrive at taxable income.
B74: (4) | C74: Average of Gross Fixed Assets at beginning and end of the Test Year
B75: (5) | C75: Average of Accumulated Depreciation at the beginning and end of the Test Year. Enter as a negative amount.
B76: (6) | C76: Select option from drop-down list by clicking on cell M10. This column allows for the application update reflecting the end of discovery or Argument-in-Chief. Also, the outcome of any Settlement Process can be reflected.
B77: (7) | C77: Input total revenue offsets for deriving the base revenue requirement from the service revenue requirement
B78: (8) | C78: 4.0% unless an Applicant has proposed or been approved for another amount.
B79: (9) | C79: Starting with 2013, default Working Capital Allowance factor is 13% (of Cost of Power plus controllable expenses). Alternatively, WCA factor based on lead-lag study or approved WCA factor for another distributor, with supporting rationale.
B81: (10) | C81: Depreciation Expense should include the adjustment resulting from the amortization of the deferred PP&E balance as shown on Appendix 2-EA or Appendix 2-EB of the Chapter 2 Appendices to the Filing Requirements.
B82: (11) | C82: Adjustment should include the adjustment to the return on rate base associated with deferred PP&E balance as shown on Appendix 2-EA or Appendix 2-EB of the Chapter 2 Appendices to the Filing Requirements.

Sheet 4. Rate_Base
B6: Rate Base and Working Capital
D10: Rate Base
B11: Line No. | D11: Particulars | G11: Initial Application | K11: =IF(ISBLANK('3. Data_Input_Sheet'!M12),"",'3. Data_Input_Sheet'!I12) -> Adjustments | O11: =IF(ISBLANK('3. Data_Input_Sheet'!M12)," ",'3. Data_Input_Sheet'!M12) -> Supplementary Interrogatory Responses | S11: =IF(ISBLANK('3. Data_Input_Sheet'!Q12),"",'3. Data_Input_Sheet'!Q12) -> Adjustments | W11: ='3. Data_Input_Sheet'!U12 -> Per Board Decision
B13: 1 | D13: Gross Fixed Assets (average) | E13: (3) | G13: ='3. Data_Input_Sheet'!E16 -> 54138074.5 | K13: ='3. Data_Input_Sheet'!I16 -> -685259 | O13: =G13+K13 -> 53452815.5 | S13: ='3. Data_Input_Sheet'!Q16 -> 1609396.5 | W13: =G13+K13+S13 -> 55062212
B14: 2 | D14: Accumulated Depreciation (average) | E14: (3) | G14: ='3. Data_Input_Sheet'!E17 -> -19187367.5 | K14: ='3. Data_Input_Sheet'!I17 -> 23129 | O14: =G14+K14 -> -19164238.5 | S14: ='3. Data_Input_Sheet'!Q17 -> -307821 | W14: =G14+K14+S14 -> -19472059.5
B15: 3 | D15: Net Fixed Assets (average) | E15: (3) | G15: =SUM(G13:G14) -> 34950707 | K15: =SUM(K13:K14) -> -662130 | O15: =SUM(O13:O14) -> 34288577 | S15: =SUM(S13:S14) -> 1301575.5 | W15: =SUM(W13:W14) -> 35590152.5
B17: 4 | D17: Allowance for Working Capital | E17: (1) | G17: =G30 -> 6743587.5 | K17: =K30 -> -64519.78 | O17: =O30 -> 6679067.72 | S17: =S30 -> -398404.88 | W17: =W30 -> 6280662.84
D18: Total Rate Base | G18: =G17+G15 -> 41694294.5 | K18: =K17+K15 -> -726649.78 | O18: =O17+O15 -> 40967644.72 | S18: =S17+S15 -> 903170.62 | W18: =W15+W17 -> 41870815.34
B19: 5
D20: Allowance for Working Capital - Derivation
C22: (1)
B24: 6 | D24: Controllable Expenses | G24: ='3. Data_Input_Sheet'!E19 -> 6325500 | K24: ='3. Data_Input_Sheet'!I19 -> 14200 | O24: =G24+K24 -> 6339700 | S24: ='3. Data_Input_Sheet'!Q19 -> -150000 | W24: =G24+K24+S24 -> 6189700
B25: 7 | D25: Cost of Power | G25: ='3. Data_Input_Sheet'!E20 -> 45548250 | K25: ='3. Data_Input_Sheet'!I20 -> -510506 | O25: =G25+K25 -> 45037744 | S25: ='3. Data_Input_Sheet'!Q20 -> 1111413 | W25: =G25+K25+S25 -> 46149157
B26: 8 | D26: Working Capital Base | G26: =SUM(G24:G25) -> 51873750 | K26: =K24+K25 -> -496306 | O26: =SUM(O24:O25) -> 51377444 | S26: =S24+S25 -> 961413 | W26: =SUM(W24:W25) -> 52338857
B28: 9 | D28: Working Capital Rate % | E28: (2) | G28: ='3. Data_Input_Sheet'!E21 -> 0.13 | K28: =O28-G28 -> 0 | O28: ='3. Data_Input_Sheet'!M21 -> 0.13 | S28: =W28-O28 -> -0.01 | W28: ='3. Data_Input_Sheet'!U21 -> 0.12
B30: 10 | D30: Working Capital Allowance | G30: =G26*G28 -> 6743587.5 | K30: =O30-G30 -> -64519.78 | O30: =O26*O28 -> 6679067.72 | S30: =W30-O30 -> -398404.88 | W30: =W26*W28 -> 6280662.84
B33: Notes
B34: (2) | D34: Some Applicants may have a unique rate as a result of a lead-lag study. Default rate for 2013 cost of service applications is 13%.
B35: (3) | D35: Average of opening and closing balances for the year.

Sheet 5. Utility Income
B11: Utility Income
B13: Line No. | D13: Particulars | F13: Initial Application | J13: =IF(N13="","","Adjustments") -> Adjustments | N13: =IF(ISBLANK('3. Data_Input_Sheet'!M12),"",'3. Data_Input_Sheet'!M12) -> Supplementary Interrogatory Responses | R13: =IF(N13="","","Adjustments") -> Adjustments | V13: ='3. Data_Input_Sheet'!U12 -> Per Board Decision
D15: Operating Revenues:
B16: 1 | D16: Distribution Revenue (at Proposed Rates) | F16: ='3. Data_Input_Sheet'!E26 -> 9926660 | J16: =N16-F16 -> -235857 | N16: ='3. Data_Input_Sheet'!M26 -> 9690803 | R16: =V16-N16 -> -59222 | V16: =IF(ISBLANK('3. Data_Input_Sheet'!U26),'5. Utility Income'!N16,'3. Data_Input_Sheet'!U26) -> 9631581
B17: 2 | D17: Other Revenue | E17: (1) | F17: =F50 -> 653041 | J17: =N17-F17 -> 0 | N17: =N50 -> 653041 | R17: =V17-N17 -> 0 | V17: =V50 -> 653041
F18: =SUM(F16:F17) -> 10579701 | J18: =SUM(J16:J17) -> -235857 | N18: =SUM(N16:N17) -> 10343844 | R18: =SUM(R16:R17) -> -59222 | V18: =SUM(V16:V17) -> 10284622
B19: 3 | D19: Total Operating Revenues
D21: Operating Expenses:
B22: 4 | D22: OM+A Expenses | F22: ='3. Data_Input_Sheet'!E36 -> 6292500 | J22: ='3. Data_Input_Sheet'!I36 -> 14200 | N22: ='3. Data_Input_Sheet'!M36 -> 6306700 | R22: ='3. Data_Input_Sheet'!Q36 -> -150000 | V22: ='3. Data_Input_Sheet'!U36 -> 6156700
B23: 5 | D23: Depreciation/Amortization | F23: ='3. Data_Input_Sheet'!E37 -> 1379137 | J23: ='3. Data_Input_Sheet'!I37 -> -43677 | N23: ='3. Data_Input_Sheet'!M37 -> 1335460 | R23: ='3. Data_Input_Sheet'!Q37 -> 8364 | V23: ='3. Data_Input_Sheet'!U37 -> 1343824
B24: 6 | D24: Property taxes | F24: ='3. Data_Input_Sheet'!E38 -> 33000 | J24: ='3. Data_Input_Sheet'!I38 -> 0 | N24: ='3. Data_Input_Sheet'!M38 -> 33000 | R24: ='3. Data_Input_Sheet'!Q38 -> 0 | V24: ='3. Data_Input_Sheet'!U38 -> 33000
B25: 7 | D25: Capital taxes | F25: ='6. Taxes_PILs'!G25 -> 0 | J25: =N25-F25 -> 0 | N25: ='6. Taxes_PILs'!K25 -> 0 | R25: =V25-N25 -> 0 | V25: ='6. Taxes_PILs'!O25 -> 0
B26: 8 | D26: Other expense | F26: ='3. Data_Input_Sheet'!E40 -> 0 | J26: ='3. Data_Input_Sheet'!I40 -> 0 | N26: ='3. Data_Input_Sheet'!M40 ->  | R26: ='3. Data_Input_Sheet'!Q40 -> 0 | V26: ='3. Data_Input_Sheet'!U40 -> 
F27: =SUM(F22:F26) -> 7704637 | J27: =SUM(J22:J26) -> -29477 | N27: =SUM(N22:N26) -> 7675160 | R27: =SUM(R22:R26) -> -141636 | V27: =SUM(V22:V26) -> 7533524
B28: 9 | D28: Subtotal (lines 4 to 8)
B30: 10 | D30: Deemed Interest Expense | F30: ='7. Cost_of_Capital'!P19 -> 1386585.458 | J30: =N30-F30 -> -145757.4346 | N30: ='7. Cost_of_Capital'!P35 -> 1240828.023 | R30: =V30-N30 -> 36566.81111 | V30: ='7. Cost_of_Capital'!P51 -> 1277394.834
B32: 11 | D32: Total Expenses (lines 9 to 10) | F32: =F27+F30 -> 9091222.458 | J32: =J30+J27 -> -175234.4346 | N32: =N30+N27 -> 8915988.023 | R32: =R30+R27 -> -105069.1889 | V32: =V27+V30 -> 8810918.834
B34: 12 | D34: Adjustment to Return on Rate Base associated with Deferred PP&E balance as a result of transition from CGAAP to MIFRS | F34: ='3. Data_Input_Sheet'!E67 -> -32530 | J34: =N34-F34 -> -2979 | N34: ='3. Data_Input_Sheet'!M67 -> -35509 | R34: =V34-N34 -> -215 | V34: ='3. Data_Input_Sheet'!U67 -> -35724
B36: 13 | D36: Utility income before income taxes | F36: =F18-(F32+F34) -> 1521008.542 | J36: =J18-(J32+J34) -> -57643.56539 | N36: =N18-(N32+N34) -> 1463364.977 | R36: =R18-(R32+R34) -> 46062.18889 | V36: =V18-(V32+V34) -> 1509427.166
F37: ='6. Taxes_PILs'!G31 -> 0 | J37: =N37-F37 -> 0 | N37: ='6. Taxes_PILs'!K31 -> 0 | R37: =V37-N37 -> 5427.218935 | V37: =IF('6. Taxes_PILs'!O31=0,N37,'6. Taxes_PILs'!O31) -> 5427.218935
B38: 14 | D38: Income taxes (grossed-up)
F39: =F36-F37 -> 1521008.542 | J39: =J36-J37 -> -57643.56539 | N39: =N36-N37 -> 1463364.977 | R39: =R36-R37 -> 40634.96995 | V39: =V36-V37 -> 1503999.947
B40: 15 | D40: Utility net income
B44: Notes
B46: (1) | D46: Specific Service Charges | F46: ='3. Data_Input_Sheet'!E28 -> 436418 | J46: ='3. Data_Input_Sheet'!I28 -> 0 | N46: ='3. Data_Input_Sheet'!M28 -> 436418 | R46: ='3. Data_Input_Sheet'!Q28 -> 0 | V46: =IF(ISBLANK('3. Data_Input_Sheet'!U28),N46,'3. Data_Input_Sheet'!U28) -> 436418
D47: Late Payment Charges | F47: ='3. Data_Input_Sheet'!E29 -> 89685 | J47: ='3. Data_Input_Sheet'!I29 -> 0 | N47: ='3. Data_Input_Sheet'!M29 -> 89685 | R47: ='3. Data_Input_Sheet'!Q29 -> 0 | V47: =IF(ISBLANK('3. Data_Input_Sheet'!U29),N47,'3. Data_Input_Sheet'!U29) -> 89685
D48: Other Distribution Revenue | F48: ='3. Data_Input_Sheet'!E30 -> 0 | J48: ='3. Data_Input_Sheet'!I30 ->  | N48: ='3. Data_Input_Sheet'!M30 -> 0 | R48: ='3. Data_Input_Sheet'!Q30 ->  | V48: =IF(ISBLANK('3. Data_Input_Sheet'!U30),N48,'3. Data_Input_Sheet'!U30) -> 0
D49: Other Income and Deductions | F49: ='3. Data_Input_Sheet'!E31 -> 126938 | J49: ='3. Data_Input_Sheet'!I31 -> 0 | N49: ='3. Data_Input_Sheet'!M31 -> 126938 | R49: ='3. Data_Input_Sheet'!Q31 -> 0 | V49: =IF(ISBLANK('3. Data_Input_Sheet'!U31),N49,'3. Data_Input_Sheet'!U31) -> 126938
F50: =SUM(F46:F49) -> 653041 | J50: =SUM(J46:J49) -> 0 | N50: =SUM(N46:N49) -> 653041 | R50: =SUM(R46:R49) -> 0 | V50: =SUM(V46:V49) -> 653041
D51: Total Revenue Offsets

Sheet 6. Taxes_PILs
B9: Taxes/PILs
B12: Line No. | D12: Particulars | G12: Application | K12: =IF(ISBLANK('3. Data_Input_Sheet'!M12),"",'3. Data_Input_Sheet'!M12) -> Supplementary Interrogatory Responses | O12: ='3. Data_Input_Sheet'!U12 -> Per Board Decision
D14: Determination of Taxable Income
B16: 1 | D16: Utility net income before taxes | G16: ='7. Cost_of_Capital'!P22 -> 1521007.863 | K16: ='7. Cost_of_Capital'!P38 -> 1463364.269 | O16: ='7. Cost_of_Capital'!P54 -> 1503999.687
B18: 2 | D18: Adjustments required to arrive at taxable utility income | G18: ='3. Data_Input_Sheet'!E44 -> -1547168 | K18: ='3. Data_Input_Sheet'!M44 -> -1484657 | O18: =IF(ISBLANK('3. Data_Input_Sheet'!U44),G18,'3. Data_Input_Sheet'!U44) -> -1474412
B20: 3 | D20: Taxable income | G20: =G16+G18 -> -26160.13664 | K20: =K16+K18 -> -21292.7306 | O20: =O16+O18 -> 29587.68701
D22: Calculation of Utility income Taxes
B24: 4 | D24: Income taxes | G24: ='3. Data_Input_Sheet'!E46 -> 0 | K24: =IF(ISBLANK('3. Data_Input_Sheet'!M46),'6. Taxes_PILs'!G24,'3. Data_Input_Sheet'!M46) -> 0 | O24: =IF(ISBLANK('3. Data_Input_Sheet'!U46),'6. Taxes_PILs'!K24,'3. Data_Input_Sheet'!U46) -> 4586
B25: 5 | D25: Capital taxes | G25: ='3. Data_Input_Sheet'!E48 -> 0 | K25: =IF(ISBLANK('3. Data_Input_Sheet'!M48),'6. Taxes_PILs'!G25,'3. Data_Input_Sheet'!M48) -> 0 | O25: =IF(ISBLANK('3. Data_Input_Sheet'!U48),'6. Taxes_PILs'!K25,'3. Data_Input_Sheet'!U48) -> 0
G26: =SUM(G24:G25) -> 0 | K26: =SUM(K24:K25) -> 0 | O26: =SUM(O24:O25) -> 4586
B27: 6 | D27: Total taxes
B29: 7 | D29: Gross-up of Income Taxes | G29: =(G24/(1-G41))-G24 -> 0 | K29: =(K24/(1-K41))-K24 -> 0 | O29: =(O24/(1-O41))-O24 -> 841.2189349
B31: 8 | D31: Grossed-up Income Taxes | G31: =G24+G29 -> 0 | K31: =K24+K29 -> 0 | O31: =O24+O29 -> 5427.218935
B33: 9 | D33: PILs / tax Allowance (Grossed-up Income taxes + Capital taxes) | G33: =G26+G29 -> 0 | K33: =K29+K26 -> 0 | O33: =O29+O26 -> 5427.218935
B35: 10 | D35: Other tax Credits | G35: ='3. Data_Input_Sheet'!E51 -> 0 | K35: =IF(ISBLANK('3. Data_Input_Sheet'!M51),G35,'3. Data_Input_Sheet'!M51) -> 0 | O35: =IF(ISBLANK('3. Data_Input_Sheet'!U51),K35,'3. Data_Input_Sheet'!U51) -> 0
D37: Tax Rates
B39: 11 | D39: Federal tax (%) | G39: ='3. Data_Input_Sheet'!E49 -> 0.15 | K39: =IF(ISBLANK('3. Data_Input_Sheet'!M49),G39,'3. Data_Input_Sheet'!M49) -> 0.15 | O39: =IF(ISBLANK('3. Data_Input_Sheet'!U49),K39,'3. Data_Input_Sheet'!U49) -> 0.11
B40: 12 | D40: Provincial tax (%) | G40: ='3. Data_Input_Sheet'!E50 -> 0.115 | K40: =IF(ISBLANK('3. Data_Input_Sheet'!M50),G40,'3. Data_Input_Sheet'!M50) -> 0.115 | O40: =IF(ISBLANK('3. Data_Input_Sheet'!U50),K40,'3. Data_Input_Sheet'!U50) -> 0.045
B41: 13 | D41: Total tax rate (%) | G41: =G39+G40 -> 0.265 | K41: =K39+K40 -> 0.265 | O41: =O39+O40 -> 0.155
B44: Notes
D45: Capital Taxes not applicable after July 1, 2010 (i.e. for 2011 and later test years)

Sheet 7. Cost_of_Capital
B5: Capitalization/Cost of Capital
B11: Line No. | D11: Particulars | F11: Capitalization Ratio | L11: Cost Rate | P11: Return
F13: Initial Application
F15: (%) | J15: ($) | L15: (%) | P15: ($)
D16: Debt
B17: 1 | D17: Long-term Debt | F17: ='3. Data_Input_Sheet'!E55 -> 0.56 | J17: =$J$26*F17 -> 23348804.92 | L17: ='3. Data_Input_Sheet'!E62 -> 0.0579 | P17: =L17*J17 -> 1351895.805
B18: 2 | D18: Short-term Debt | F18: ='3. Data_Input_Sheet'!E56 -> 0.04 | J18: =$J$26*F18 -> 1667771.78 | L18: ='3. Data_Input_Sheet'!E63 -> 0.0208 | P18: =L18*J18 -> 34689.65302
B19: 3 | D19: Total Debt | F19: =SUM(F17:F18) -> 0.6 | J19: =SUM(J17:J18) -> 25016576.7 | L19: =IF(F19=0,0,SUMPRODUCT(F17:F18,L17:L18)/F19) -> 0.05542666667 | P19: =SUM(P17:P18) -> 1386585.458
D21: Equity
B22: 4 | D22: Common Equity | F22: ='3. Data_Input_Sheet'!E57 -> 0.4 | J22: =$J$26*F22 -> 16677717.8 | L22: ='3. Data_Input_Sheet'!E64 -> 0.0912 | P22: =L22*J22 -> 1521007.863
B23: 5 | D23: Preferred Shares | F23: ='3. Data_Input_Sheet'!E58 -> 0 | J23: =$J$26*F23 -> 0 | L23: ='3. Data_Input_Sheet'!E65 -> 0 | P23: =L23*J23 -> 0
B24: 6 | D24: Total Equity | F24: =SUM(F22:F23) -> 0.4 | J24: =SUM(J22:J23) -> 16677717.8 | L24: =IF(F24=0,0,SUMPRODUCT(F22:F23,L22:L23)/F24) -> 0.0912 | P24: =SUM(P22:P23) -> 1521007.863
B26: 7 | D26: Total | F26: =SUM(F19,F24) -> 1 | J26: ='4. Rate_Base'!G18 -> 41694294.5 | L26: =(L19*F19)+(L24*F24) -> 0.069736 | P26: =P19+P24 -> 2907593.321
F29: ='1. Info'!AC1 -> Supplementary Interrogatory Responses
F31: (%) | J31: ($) | L31: (%) | P31: ($)
D32: Debt
B33: 1 | D33: Long-term Debt | F33: ='3. Data_Input_Sheet'!M55 -> 0.56 | J33: =$J$42*F33 -> 22941881.04 | L33: ='3. Data_Input_Sheet'!M62 -> 0.0526 | P33: =L33*J33 -> 1206742.943
B34: 2 | D34: Short-term Debt | F34: ='3. Data_Input_Sheet'!M56 -> 0.04 | J34: =$J$42*F34 -> 1638705.789 | L34: ='3. Data_Input_Sheet'!M63 -> 0.0208 | P34: =L34*J34 -> 34085.08041
B35: 3 | D35: Total Debt | F35: =SUM(F33:F34) -> 0.6 | J35: =SUM(J33:J34) -> 24580586.83 | L35: =IF(F35=0,0,SUMPRODUCT(F33:F34,L33:L34)/F35) -> 0.05048 | P35: =SUM(P33:P34) -> 1240828.023
D37: Equity
B38: 4 | D38: Common Equity | F38: ='3. Data_Input_Sheet'!M57 -> 0.4 | J38: =$J$42*F38 -> 16387057.89 | L38: ='3. Data_Input_Sheet'!M64 -> 0.0893 | P38: =L38*J38 -> 1463364.269
B39: 5 | D39: Preferred Shares | F39: ='3. Data_Input_Sheet'!M58 -> 0 | J39: =$J$42*F39 -> 0 | L39: ='3. Data_Input_Sheet'!M65 -> 0 | P39: =L39*J39 -> 0
B40: 6 | D40: Total Equity | F40: =SUM(F38:F39) -> 0.4 | J40: =SUM(J38:J39) -> 16387057.89 | L40: =IF(F40=0,0,SUMPRODUCT(F38:F39,L38:L39)/F40) -> 0.0893 | P40: =SUM(P38:P39) -> 1463364.269
B42: 7 | D42: Total | F42: =F35+F40 -> 1 | J42: ='4. Rate_Base'!O18 -> 40967644.72 | L42: =(L35*F35)+(L40*F40) -> 0.066008 | P42: =P35+P40 -> 2704192.293
F45: Per Board Decision
F47: (%) | J47: ($) | L47: (%) | P47: ($)
D48: Debt
B49: 8 | D49: Long-term Debt | F49: =IF(ISBLANK('3. Data_Input_Sheet'!U55),F33,'3. Data_Input_Sheet'!U55) -> 0.56 | J49: =$J$58*F49 -> 23447656.59 | L49: =IF(ISBLANK('3. Data_Input_Sheet'!U62),L17,'3. Data_Input_Sheet'!U62) -> 0.053 | P49: =L49*J49 -> 1242725.799
B50: 9 | D50: Short-term Debt | F50: =IF(ISBLANK('3. Data_Input_Sheet'!U56),F34,'3. Data_Input_Sheet'!U56) -> 0.04 | J50: =$J$58*F50 -> 1674832.614 | L50: =IF(ISBLANK('3. Data_Input_Sheet'!U63),L18,'3. Data_Input_Sheet'!U63) -> 0.0207 | P50: =L50*J50 -> 34669.0351
B51: 10 | D51: Total Debt | F51: =SUM(F49:F50) -> 0.6 | J51: =SUM(J49:J50) -> 25122489.2 | L51: =IF(F51=0,0,SUMPRODUCT(F49:F50,L49:L50)/F51) -> 0.05084666667 | P51: =SUM(P49:P50) -> 1277394.834
D53: Equity
B54: 11 | D54: Common Equity | F54: =IF(ISBLANK('3. Data_Input_Sheet'!U57),F38,'3. Data_Input_Sheet'!U57) -> 0.4 | J54: =$J$58*F54 -> 16748326.14 | L54: =IF(ISBLANK('3. Data_Input_Sheet'!U64),L22,'3. Data_Input_Sheet'!U64) -> 0.0898 | P54: =L54*J54 -> 1503999.687
B55: 12 | D55: Preferred Shares | F55: =IF(ISBLANK('3. Data_Input_Sheet'!U58),F39,'3. Data_Input_Sheet'!U58) -> 0 | J55: =$J$58*F55 -> 0 | L55: =IF(ISBLANK('3. Data_Input_Sheet'!U65),L23,'3. Data_Input_Sheet'!U65) -> 0 | P55: =L55*J55 -> 0
B56: 13 | D56: Total Equity | F56: =SUM(F54:F55) -> 0.4 | J56: =SUM(J54:J55) -> 16748326.14 | L56: =IF(F56=0,0,SUMPRODUCT(F54:F55,L54:L55)/F56) -> 0.0898 | P56: =SUM(P54:P55) -> 1503999.687
B58: 14 | D58: Total | F58: =F51+F56 -> 1 | J58: ='4. Rate_Base'!W18 -> 41870815.34 | L58: =(L51*F51)+(L56*F56) -> 0.066428 | P58: =P51+P56 -> 2781394.521
B61: Notes
B62: (1) | D62: ='3. Data_Input_Sheet'!C72 -> Data in column E is for Application as originally filed. For updated revenue requirement as a result of interrogatory responses, technical or settlement conferences, etc., use colimn M and Adjustments in column I

Sheet 8. Rev_Def_Suff
P1: =CONCATENATE('2. Table of Contents'!$F$6," ",'2. Table of Contents'!$G$6) -> 
B10: Revenue Deficiency/Sufficiency
F13: Initial Application | J13: =IF(ISBLANK('3. Data_Input_Sheet'!M12),"",'3. Data_Input_Sheet'!M12) -> Supplementary Interrogatory Responses | N13: ='3. Data_Input_Sheet'!U12 -> Per Board Decision
B15: Line No. | D15: Particulars | F15: At Current Approved Rates | H15: At Proposed Rates | J15: At Current Approved Rates | L15: At Proposed Rates | N15: At Current Approved Rates | P15: At Proposed Rates
B19: 1 | D19: Revenue Deficiency from Below | H19: =F53 -> 977793.4353 | L19: =J53 -> 743691.3218 | P19: =N53 -> 656372.8486
B20: 2 | D20: Distribution Revenue | F20: ='3. Data_Input_Sheet'!E25 -> 8939434 | H20: ='3. Data_Input_Sheet'!E26-H19 -> 8948866.565 | J20: =IF(ISBLANK('3. Data_Input_Sheet'!M25),'3. Data_Input_Sheet'!E25,'3. Data_Input_Sheet'!M25) -> 8939434 | L20: =IF(ISBLANK('3. Data_Input_Sheet'!M26),'3. Data_Input_Sheet'!E26-L19,'3. Data_Input_Sheet'!M26-L19) -> 8947111.678 | N20: =IF(ISBLANK('3. Data_Input_Sheet'!U25),'3. Data_Input_Sheet'!M25,'3. Data_Input_Sheet'!U25) -> 8975208 | P20: =IF(ISBLANK('3. Data_Input_Sheet'!U26),'3. Data_Input_Sheet'!M26-P19,'3. Data_Input_Sheet'!U26-P19) -> 8975208.151
B21: 3 | D21: Other Operating Revenue Offsets - net | F21: ='5. Utility Income'!F50 -> 653041 | H21: ='5. Utility Income'!F50 -> 653041 | J21: ='5. Utility Income'!N50 -> 653041 | L21: =J21 -> 653041 | N21: ='5. Utility Income'!V50 -> 653041 | P21: ='5. Utility Income'!V50 -> 653041
B22: 4 | D22: Total Revenue | F22: =SUM(F20:F21) -> 9592475 | H22: =SUM(H19:H21) -> 10579701 | J22: =SUM(J20:J21) -> 9592475 | L22: =SUM(L19:L21) -> 10343844 | N22: =SUM(N20:N21) -> 9628249 | P22: =SUM(P19:P21) -> 10284622
B24: 5 | D24: Operating Expenses | F24: ='5. Utility Income'!F27 -> 7704637 | H24: ='5. Utility Income'!F27 -> 7704637 | J24: ='5. Utility Income'!N27 -> 7675160 | L24: ='5. Utility Income'!N27 -> 7675160 | N24: ='5. Utility Income'!V27 -> 7533524 | P24: ='5. Utility Income'!V27 -> 7533524
B25: 6 | D25: Deemed Interest Expense | F25: ='5. Utility Income'!F30 -> 1386585.458 | H25: ='5. Utility Income'!F30 -> 1386585.458 | J25: ='5. Utility Income'!N30 -> 1240828.023 | L25: ='5. Utility Income'!N30 -> 1240828.023 | N25: ='5. Utility Income'!V30 -> 1277394.834 | P25: ='5. Utility Income'!V30 -> 1277394.834
B26: 7 | D26: Adjustment to Return on Rate Base associated with Deferred PP&E balance as a result of transition from CGAAP to MIFRS | F26: ='3. Data_Input_Sheet'!E67 -> -32530 | G26: (2) | H26: =F26 -> -32530 | J26: ='3. Data_Input_Sheet'!M67 -> -35509 | K26: (2) | L26: =J26 -> -35509 | N26: ='3. Data_Input_Sheet'!U67 -> -35724 | O26: (2) | P26: =N26 -> -35724
B27: 8 | D27: Total Cost and Expenses | F27: =SUM(F24:F26) -> 9058692.458 | H27: =SUM(H24:H26) -> 9058692.458 | J27: =SUM(J24:J26) -> 8880479.023 | L27: =SUM(L24:L26) -> 8880479.023 | N27: =SUM(N24:N26) -> 8775194.834 | P27: =SUM(P24:P26) -> 8775194.834
B29: 9 | D29: Utility Income Before Income Taxes | F29: =F22-F27 -> 533782.5421 | H29: =H22-H27 -> 1521008.542 | J29: =J22-J27 -> 711995.9767 | L29: =L22-L27 -> 1463364.977 | N29: =N22-N27 -> 853054.1656 | P29: =P22-P27 -> 1509427.166
B31: 10 | D31: Tax Adjustments to Accounting Income per 2013 PILs model | F31: ='3. Data_Input_Sheet'!E44 -> -1547168 | H31: ='3. Data_Input_Sheet'!E44 -> -1547168 | J31: =IF(ISBLANK('3. Data_Input_Sheet'!M44),'3. Data_Input_Sheet'!E44,'3. Data_Input_Sheet'!M44) -> -1484657 | L31: =IF(ISBLANK('3. Data_Input_Sheet'!M44),'3. Data_Input_Sheet'!E44,'3. Data_Input_Sheet'!M44) -> -1484657 | N31: =IF(ISBLANK('3. Data_Input_Sheet'!U44),'3. Data_Input_Sheet'!M44,'3. Data_Input_Sheet'!U44) -> -1474412 | P31: =IF(ISBLANK('3. Data_Input_Sheet'!U44),'3. Data_Input_Sheet'!M44,'3. Data_Input_Sheet'!U44) -> -1474412
B32: 11 | D32: Taxable Income | F32: =SUM(F29:F31) -> -1013385.458 | H32: =SUM(H29:H31) -> -26159.45789 | J32: =SUM(J29+J31) -> -772661.0233 | L32: =L29+L31 -> -21292.02328 | N32: =SUM(N29+N31) -> -621357.8344 | P32: =P29+P31 -> 35015.16561
B34: 12 | D34: Income Tax Rate | F34: ='6. Taxes_PILs'!G41 -> 0.265 | H34: ='6. Taxes_PILs'!G41 -> 0.265 | J34: ='6. Taxes_PILs'!K41 -> 0.265 | L34: ='6. Taxes_PILs'!K41 -> 0.265 | N34: ='6. Taxes_PILs'!O41 -> 0.155 | P34: ='6. Taxes_PILs'!O41 -> 0.155
B35: 13 | D35: Income Tax on Taxable Income | F35: =F32*F34 -> -268547.1463 | H35: =H32*H34 -> -6932.256341 | J35: =J32*J34 -> -204755.1712 | L35: =L32*L34 -> -5642.386169 | N35: =N32*N34 -> -96310.46433 | P35: =P32*P34 -> 5427.350669
B36: 14 | D36: Income Tax Credits | F36: ='3. Data_Input_Sheet'!E51 -> 0 | H36: ='3. Data_Input_Sheet'!E51 -> 0 | J36: =IF(ISBLANK('3. Data_Input_Sheet'!M51),'3. Data_Input_Sheet'!E51,'3. Data_Input_Sheet'!M51) -> 0 | L36: =IF(ISBLANK('3. Data_Input_Sheet'!M51),'3. Data_Input_Sheet'!E51,'3. Data_Input_Sheet'!M51) -> 0 | N36: =IF(ISBLANK('3. Data_Input_Sheet'!U51),'3. Data_Input_Sheet'!M51,'3. Data_Input_Sheet'!U51) -> 0 | P36: =IF(ISBLANK('3. Data_Input_Sheet'!U51),'3. Data_Input_Sheet'!M51,'3. Data_Input_Sheet'!U51) -> 0
B37: 15 | D37: Utility Net Income | F37: =F29-SUM(F35:F36) -> 802329.6884 | H37: ='5. Utility Income'!F39 -> 1521008.542 | J37: =J29-SUM(J35:J36) -> 916751.1479 | L37: ='5. Utility Income'!N39 -> 1463364.977 | N37: =N29-SUM(N35:N36) -> 949364.6299 | P37: ='5. Utility Income'!V39 -> 1503999.947
B39: 16 | D39: Utility Rate Base | F39: ='4. Rate_Base'!G18 -> 41694294.5 | H39: ='4. Rate_Base'!G18 -> 41694294.5 | J39: ='4. Rate_Base'!O18 -> 40967644.72 | L39: ='4. Rate_Base'!O18 -> 40967644.72 | N39: ='4. Rate_Base'!W18 -> 41870815.34 | P39: ='4. Rate_Base'!W18 -> 41870815.34
B41: 17 | D41: Deemed Equity Portion of Rate Base | F41: ='7. Cost_of_Capital'!J24 -> 16677717.8 | H41: =F41 -> 16677717.8 | J41: ='7. Cost_of_Capital'!J40 -> 16387057.89 | L41: =J41 -> 16387057.89 | N41: ='7. Cost_of_Capital'!J56 -> 16748326.14 | P41: =N41 -> 16748326.14
B43: 18 | D43: Income/(Equity Portion of Rate Base) | F43: =IF(F41=0,0,F37/F41) -> 0.04810788251 | H43: =IF(H41=0,0,H37/H41) -> 0.0912000407 | J43: =IF(J41=0,0,J37/J41) -> 0.05594360831 | L43: =IF(L41=0,0,L37/L41) -> 0.08930004316 | N43: =IF(N41=0,0,N37/N41) -> 0.05668414994 | P43: =IF(P41=0,0,P37/P41) -> 0.0898000155
B44: 19 | D44: Target Return - Equity on Rate Base | F44: ='7. Cost_of_Capital'!L24 -> 0.0912 | H44: ='7. Cost_of_Capital'!L24 -> 0.0912 | J44: ='7. Cost_of_Capital'!L40 -> 0.0893 | L44: ='7. Cost_of_Capital'!L40 -> 0.0893 | N44: ='7. Cost_of_Capital'!L56 -> 0.0898 | P44: ='7. Cost_of_Capital'!L56 -> 0.0898
B45: 20 | D45: Deficiency/Sufficiency in Return on Equity | F45: =F43-F44 -> -0.04309211749 | H45: =H43-H44 -> 4.069789449e-08 | J45: =J43-J44 -> -0.03335639169 | L45: =L43-L44 -> 4.316346748e-08 | N45: =N43-N44 -> -0.03311585006 | P45: =P43-P44 -> 1.550361317e-08
B47: 21 | D47: Indicated Rate of Return | F47: =IF(F39=0,0,(F37+F25)/F39) -> 0.052499153 | H47: =IF(H39=0,0,(H37+H25)/H39) -> 0.06973601628 | J47: =IF(J39=0,0,(J37+J25)/J39) -> 0.05266544333 | L47: =IF(L41=0,0,(L37+L25)/L39) -> 0.06600801727 | N47: =IF(N39=0,0,(N37+N25)/N39) -> 0.05318165998 | P47: =IF(P41=0,0,(P37+P25)/P39) -> 0.0664280062
B48: 22 | D48: Requested Rate of Return on Rate Base | F48: ='7. Cost_of_Capital'!L26 -> 0.069736 | H48: ='7. Cost_of_Capital'!L26 -> 0.069736 | J48: ='7. Cost_of_Capital'!L42 -> 0.066008 | L48: ='7. Cost_of_Capital'!L42 -> 0.066008 | N48: ='7. Cost_of_Capital'!L58 -> 0.066428 | P48: ='7. Cost_of_Capital'!L58 -> 0.066428
B49: 23 | D49: Deficiency/Sufficiency in Rate of Return | F49: =F47-F48 -> -0.017236847 | H49: =H47-H48 -> 1.62791578e-08 | J49: =J47-J48 -> -0.01334255667 | L49: =L47-L48 -> 1.7265387e-08 | N49: =N47-N48 -> -0.01324634002 | P49: =P47-P48 -> 6.20144526e-09
B51: 24 | D51: Target Return on Equity | F51: =H51 -> 1521007.863 | H51: ='7. Cost_of_Capital'!P24 -> 1521007.863 | J51: =L51 -> 1463364.269 | L51: ='7. Cost_of_Capital'!P40 -> 1463364.269 | N51: =P51 -> 1503999.687 | P51: ='7. Cost_of_Capital'!P56 -> 1503999.687
B52: 25 | D52: Revenue Deficiency/(Sufficiency) | F52: =F51-F37 -> 718678.1749 | H52: =H39*H49 -> 0.6787479995 | J52: =J51-J37 -> 546613.1215 | L52: =L39*L49 -> 0.7073222404 | N52: =N51-N37 -> 554635.0571 | P52: =P39*P49 -> 0.2596595693
B53: 26 | D53: Gross Revenue Deficiency/(Sufficiency) | F53: =F52/(1-F34) -> 977793.4353 | G53: (1) | J53: =J52/(1-J34) -> 743691.3218 | K53: (1) | N53: =N52/(1-N34) -> 656372.8486 | O53: (1)
B56: Notes:
B57: (1) | D57: Revenue Deficiency/Sufficiency divided by (1 - Tax Rate)
B58: (2) | D58: Treated as an adjustment pre-tax to avoid an impact on taxes/PILs and hence on revenue sufficiency deficiency

Sheet 9. Rev_Reqt
B11: Revenue Requirement
B13: Line No. | D13: Particulars | F13: Application | J13: =IF(ISBLANK('3. Data_Input_Sheet'!M12),"",'3. Data_Input_Sheet'!M12) -> Supplementary Interrogatory Responses | N13: ='3. Data_Input_Sheet'!U12 -> Per Board Decision
B15: 1 | D15: OM&A Expenses | F15: ='5. Utility Income'!F22 -> 6292500 | J15: ='5. Utility Income'!N22 -> 6306700 | N15: ='5. Utility Income'!V22 -> 6156700
B16: 2 | D16: Amortization/Depreciation | F16: ='5. Utility Income'!F23 -> 1379137 | J16: ='5. Utility Income'!N23 -> 1335460 | N16: ='5. Utility Income'!V23 -> 1343824
B17: 3 | D17: Property Taxes | F17: ='5. Utility Income'!F24 -> 33000 | J17: ='5. Utility Income'!N24 -> 33000 | N17: ='5. Utility Income'!V24 -> 33000
B18: 4 | D18: Capital Taxes | F18: ='6. Taxes_PILs'!G25 -> 0 | J18: ='6. Taxes_PILs'!K25 -> 0 | N18: ='6. Taxes_PILs'!O25 -> 0
B19: 5 | D19: Income Taxes (Grossed up) | F19: ='6. Taxes_PILs'!G33-F18 -> 0 | J19: ='6. Taxes_PILs'!K33-J18 -> 0 | N19: ='6. Taxes_PILs'!O33-N18 -> 5427.218935
B20: 6 | D20: Other Expenses | F20: ='5. Utility Income'!F26 -> 0 | J20: ='5. Utility Income'!N26 ->  | N20: ='5. Utility Income'!V26 -> 
B21: 7 | D21: Return
D22: Deemed Interest Expense | F22: ='8. Rev_Def_Suff'!F25 -> 1386585.458 | J22: ='8. Rev_Def_Suff'!L25 -> 1240828.023 | N22: ='8. Rev_Def_Suff'!P25 -> 1277394.834
D23: Return on Deemed Equity | F23: ='8. Rev_Def_Suff'!F51 -> 1521007.863 | J23: ='8. Rev_Def_Suff'!L51 -> 1463364.269 | N23: ='8. Rev_Def_Suff'!P51 -> 1503999.687
D24: Adjustment to Return on Rate Base associated with Deferred PP&E balance as a result of transition from CGAAP to MIFRS | F24: ='3. Data_Input_Sheet'!E67 -> -32530 | J24: ='3. Data_Input_Sheet'!M67 -> -35509 | N24: ='3. Data_Input_Sheet'!U67 -> -35724
B26: 8 | D26: Service Revenue Requirement (before Revenues) | F26: =SUM(F15:F24) -> 10579700.32 | J26: =SUM(J15:J24) -> 10343843.29 | N26: =SUM(N15:O24) -> 10284621.74
B28: 9 | D28: Revenue Offsets | F28: ='3. Data_Input_Sheet'!E33 -> 653041 | J28: ='3. Data_Input_Sheet'!M33 -> 653041 | N28: ='3. Data_Input_Sheet'!U33 -> 653041
B29: 10 | D29: Base Revenue Requirement | F29: =F26-F28 -> 9926659.321 | J29: =J26-J28 -> 9690802.293 | N29: =N26-N28 -> 9631580.74
D30: (excluding Tranformer Owership Allowance credit adjustment)
B32: 11 | D32: Distribution revenue | F32: ='5. Utility Income'!F16 -> 9926660 | J32: ='5. Utility Income'!N16 -> 9690803 | N32: ='5. Utility Income'!V16 -> 9631581
B33: 12 | D33: Other revenue | F33: ='5. Utility Income'!F17 -> 653041 | J33: ='5. Utility Income'!N17 -> 653041 | N33: ='5. Utility Income'!V17 -> 653041
F34: =SUM(F32:F33) -> 10579701 | J34: =SUM(J32:J33) -> 10343844 | N34: =SUM(N32:N33) -> 10284622
B35: 13 | D35: Total revenue
F36: =F34-F26 -> 0.6787479986 | J36: =J34-J26 -> 0.7073222399 | N36: =N34-N26 -> 0.2596595678
B37: 14 | D37: Difference (Total Revenue Less Distribution Revenue Requirement before Revenues) | H37: (1) | L37: (1) | Q37: (1)
B39: Notes
B40: (1) | D40: Line 11 - Line 8
